[Event "WALTON 1st Div Women League 2023"]
[Site "Dhaka"]
[Date "2023.03.23"]
[Round "2.12"]
[White "Fariha, Sumona"]
[Black "Varshini V Kundar"]
[Result "0-1"]
[ECO "B50"]
[WhiteElo "1378"]
[BlackElo "1096"]
[Annotator "NA RC COMBH"]
[PlyCount "72"]
[EventDate "2023.03.22"]
[EventType "team-tourn"]
[EventCountry "BAN"]
[SourceTitle "playchess.com"]
[Source "ChessBase"]
[SourceQuality "1"]
[TimeControl "5400+30"]

1. e4 {[%emt 0:13:57]} c5 {[%emt 0:00:25]} 2. Nf3 {[%emt 0:00:22]} d6 {[%emt 0:00:11]} 3. Bc4 {[%emt 0:00:52]} e6 {[%emt 0:00:18]} 4. a3 {[%emt 0:00:11]} Nf6 {[%emt 0:00:12]} 5. Nc3 {[%emt 0:00:25]} Be7 {[%emt 0:00:05]} 6. O-O {[%emt 0:01:59]} O-O {[%emt 0:00:08]} 7. d3 {[%emt 0:00:40]} a6 {[%emt 0:00:12]} 8. h3 {[%emt 0:00:56]} Nbd7 {[%emt 0:00:28]} 9. Re1 {[%emt 0:01:49]} b5 {[%emt 0:01:16]} 10. Ba2 {[%emt 0:00:34]} Bb7 {[%emt 0:00:05]} 11. Bg5 {[%emt 0:03:35]} h6 {[%emt 0:01:01]} 12. Bxf6 {[%emt 0:03:54]} Bxf6 {[%emt 0:00:22]} 13. Qd2 {[%emt 0:05:55]} Rc8 {[%emt 0:01:20]} 14. Rab1 {[%emt 0:02:30]} Qc7 {[%emt 0:03:08]} 15. Re3 {[%emt 0:05:48]} Rfd8 {[%emt 0:02:32]} 16. Rbe1 {[%emt 0:06:06]} Nf8 {[%emt 0:02:14]} 17. Qe2 {[%emt 0:03:05]} Ng6 {[%emt 0:04:38]} 18. Qd2 {[%emt 0:05:01]} d5 {[%emt 0:05:05]} 19. d4 {[%emt 0:05:07]} cxd4 {[%emt 0:02:04]} 20. Nxd4 {[%emt 0:01:01]} dxe4 {[%emt 0:00:45]} 21. Nce2 {[%emt 0:10:27]} e5 {[%emt 0:01:33]} 22. c3 {[%emt 0:04:29]} exd4 {[%emt 0:00:14]} 23. cxd4 {[%emt 0:01:40]} Bg5 {[%emt 0:00:28]} 24. Rc1 {[%emt 0:05:21]} Qd6 {[%emt 0:00:19]} 25. Rf1 {[%emt 0:04:49]} Bxe3 {[%emt 0:01:38]} 26. fxe3 {[%emt 0:00:21]} Bd5 {[%emt 0:00:19]} 27. b3 {[%emt 0:01:26]} Qxa3 {[%emt 0:00:44]} 28. Nc1 {[%emt 0:01:32]} Rc7 {[%emt 0:00:30]} 29. Qf2 {[%emt 0:06:07]} Rxc1 {[%emt 0:00:28]} 30. Rxc1 {[%emt 0:01:26]} Qxc1+ {[%emt 0:00:04]} 31. Kh2 {[%emt 0:00:20]} Rc8 {[%emt 0:00:48]} 32. Qf5 {[%emt 0:00:50]} Qc7+ {[%emt 0:01:07]} 33. Kg1 {[%emt 0:00:45]} Nh4 {[%emt 0:00:25]} 34. Qxd5 {[%emt 0:00:49]} Qg3 {[%emt 0:00:17]} 35. Qd8+ {[%emt 0:03:03]} Rxd8 {[%emt 0:00:07]} 36. b4 {[%emt 0:00:10]} Qxg2# {[%emt 0:00:06]} 0-1

[Event "WALTON 1st Div Women League 2023"]
[Site "Dhaka"]
[Date "2023.03.23"]
[Round "2.13"]
[White "Wadifa, Ahmed"]
[Black "Nargis, Kaumudi"]
[Result "1-0"]
[ECO "B12"]
[WhiteElo "1811"]
[BlackElo "1253"]
[Annotator "NA RC COMBH"]
[PlyCount "37"]
[EventDate "2023.03.22"]
[EventType "team-tourn"]
[EventCountry "BAN"]
[SourceTitle "playchess.com"]
[Source "ChessBase"]
[SourceQuality "1"]
[TimeControl "5400+30"]

1. e4 {[%emt 0:00:03]} d6 {[%emt 0:13:38]} 2. d4 {[%emt 0:00:09]} c6 {[%emt 0:00:07]} 3. Nf3 {[%emt 0:00:08]} Nd7 {[%emt 0:00:18]} 4. Bc4 {[%emt 0:00:12]} e6 {[%emt 0:00:09]} 5. Nc3 {[%emt 0:00:31]} Ngf6 {[%emt 0:00:19]} 6. O-O {[%emt 0:00:54]} d5 {[%emt 0:00:17]} 7. exd5 {[%emt 0:01:37]} cxd5 {[%emt 0:00:16]} 8. Bd3 {[%emt 0:00:14]} Qc7 {[%emt 0:02:21]} 9. Nb5 {[%emt 0:06:18]} Qb6 {[%emt 0:00:38]} 10. Bf4 {[%emt 0:00:48]} Nh5 {[%emt 0:05:47]} 11. Nc7+ {[%emt 0:03:35]} Kd8 {[%emt 0:00:19]} 12. Nxa8 {[%emt 0:00:03]} Qc6 {[%emt 0:00:51]} 13. Ne5 {[%emt 0:07:09]} Nxe5 {[%emt 0:00:21]} 14. Qxh5 {[%emt 0:02:33]} Nxd3 {[%emt 0:00:13]} 15. cxd3 {[%emt 0:00:08]} g6 {[%emt 0:04:06]} 16. Qf3 {[%emt 0:00:35]} Bd6 {[%emt 0:00:12]} 17. Rac1 {[%emt 0:00:40]} Qd7 {[%emt 0:00:20]} 18. Bxd6 {[%emt 0:00:38]} Qxd6 {[%emt 0:00:09]} 19. Qf6+ {[%emt 1:13:45]} 1-0

[Event "WALTON 1st Div Women League 2023"]
[Site "Dhaka"]
[Date "2023.03.23"]
[Round "2.15"]
[White "Noshin, Anjum"]
[Black "Mahjabeen, Islam"]
[Result "1-0"]
[ECO "C82"]
[WhiteElo "1877"]
[BlackElo "1180"]
[Annotator "NA RC COMBH"]
[PlyCount "35"]
[EventDate "2023.03.22"]
[EventType "team-tourn"]
[EventCountry "BAN"]
[SourceTitle "playchess.com"]
[Source "ChessBase"]
[SourceQuality "1"]
[TimeControl "5400+30"]

1. e4 {[%emt 0:07:11]} e5 {[%emt 0:00:05]} 2. Nf3 {[%emt 0:00:21]} Nc6 {[%emt 0:00:26]} 3. Bb5 {[%emt 0:00:08]} a6 {[%emt 0:00:17]} 4. Ba4 {[%emt 0:00:16]} Nf6 {[%emt 0:00:52]} 5. O-O {[%emt 0:00:13]} Nxe4 {[%emt 0:00:38]} 6. d4 {[%emt 0:00:06]} b5 {[%emt 0:01:50]} 7. Bb3 {[%emt 0:00:06]} d5 {[%emt 0:00:39]} 8. dxe5 {[%emt 0:00:13]} Be6 {[%emt 0:00:39]} 9. c3 {[%emt 0:00:35]} Bc5 {[%emt 0:00:44]} 10. Qe2 {[%emt 0:02:45]} O-O {[%emt 0:03:42]} 11. Nbd2 {[%emt 0:03:56]} Nxd2 {[%emt 0:05:34]} 12. Bxd2 {[%emt 0:03:48]} h6 {[%emt 0:04:42]} 13. Be3 {[%emt 0:02:07]} Bxe3 {[%emt 0:06:08]} 14. Qxe3 {[%emt 0:01:39]} Qe7 {[%emt 0:02:27]} 15. Nd4 {[%emt 0:03:00]} Na5 {[%emt 0:06:19]} 16. Bc2 {[%emt 0:03:59]} Nc4 {[%emt 0:01:05]} 17. Qd3 {[%emt 0:00:16]} Nxb2 {[%emt 0:02:41]} 18. Qh7# {[%emt 0:00:13]} 1-0

[Event "WALTON 1st Div Women League 2023"]
[Site "Dhaka"]
[Date "2023.03.24"]
[Round "3.1"]
[White "Nargis, Kaumudi"]
[Black "Rashma, Alam"]
[Result "1-0"]
[ECO "D02"]
[WhiteElo "1253"]
[BlackElo "1047"]
[Annotator "NA RC COMBH"]
[PlyCount "55"]
[EventDate "2023.03.22"]
[EventType "team-tourn"]
[EventCountry "BAN"]
[SourceTitle "playchess.com"]
[Source "ChessBase"]
[SourceQuality "1"]
[TimeControl "5400+30"]

1. d4 {[%emt 0:19:41]} d5 {[%emt 0:00:51]} 2. Nf3 {[%emt 0:00:07]} Nh6 {[%emt 0:00:08]} 3. Nbd2 {[%emt 0:00:24]} g6 {[%emt 0:01:04]} 4. e4 {[%emt 0:00:11]} dxe4 {[%emt 0:01:11]} 5. Nxe4 {[%emt 0:00:11]} Qd5 {[%emt 0:01:14]} 6. Nc3 {[%emt 0:01:15]} Qa5 {[%emt 0:03:32]} 7. Be2 {[%emt 0:00:48]} Bg7 {[%emt 0:00:37]} 8. O-O {[%emt 0:00:12]} Bg4 {[%emt 0:01:17]} 9. Ne5 {[%emt 0:03:43]} Bxe5 {[%emt 0:09:33]} 10. dxe5 {[%emt 0:00:16]} Bxe2 {[%emt 0:01:10]} 11. Qxe2 {[%emt 0:00:09]} Nf5 {[%emt 0:00:48]} 12. Qe4 {[%emt 0:01:20]} Nc6 {[%emt 0:02:08]} 13. Nd5 {[%emt 0:01:42]} O-O-O {[%emt 1:13:27]} 14. c4 {[%emt 0:00:40]} e6 {[%emt 0:00:00]} 15. b4 {[%emt 0:01:37]} Qa4 {[%emt 0:00:00]} 16. Bg5 {[%emt 0:00:48]} Rd7 {[%emt 0:00:00]} 17. b5 {[%emt 0:00:38]} exd5 {[%emt 0:00:00]} 18. Qf4 {[%emt 0:02:17]} Ncd4 {[%emt 0:00:00]} 19. Kh1 {[%emt 0:01:41]} dxc4 {[%emt 0:00:00]} 20. Bf6 {[%emt 0:00:04]} Re8 {[%emt 0:00:00]} 21. g4 {[%emt 0:00:06]} Ne7 {[%emt 0:00:00]} 22. Qe4 {[%emt 0:03:04]} Nxb5 {[%emt 0:04:30]} 23. e6 {[%emt 1:01:06]} fxe6 {[%emt 0:00:00]} 24. Qxe6 {[%emt 0:00:00]} c3 {[%emt 0:00:00]} 25. Rfd1 {[%emt 0:00:00]} Nd4 {[%emt 0:01:30]} 26. Rxd4 {[%emt 0:00:00]} Qb5 {[%emt 0:00:00]} 27. Rc4 {[%emt 0:00:00]} Nd5 {[%emt 0:00:00]} 28. Qxe8+ {[%emt 0:00:00]} 1-0

[Event "WALTON 1st Div Women League 2023"]
[Site "Dhaka"]
[Date "2023.03.24"]
[Round "3.2"]
[White "Sanjeedah, Khanam Mitul"]
[Black "Sharmin, Khan"]
[Result "0-1"]
[ECO "B50"]
[WhiteElo "1165"]
[BlackElo "1290"]
[Annotator "NA RC COMBH"]
[PlyCount "68"]
[EventDate "2023.03.22"]
[EventType "team-tourn"]
[EventCountry "BAN"]
[SourceTitle "playchess.com"]
[Source "ChessBase"]
[SourceQuality "1"]
[TimeControl "5400+30"]

1. e4 {[%emt 0:19:15]} c5 {[%emt 0:00:13]} 2. Bc4 {[%emt 0:01:42]} d6 {[%emt 0:00:52]} 3. Nf3 {[%emt 0:00:38]} h6 {[%emt 0:00:29]} 4. h3 {[%emt 0:00:42]} Nc6 {[%emt 0:00:20]} 5. c3 {[%emt 0:01:08]} Nf6 {[%emt 0:00:26]} 6. d3 {[%emt 0:01:00]} e5 {[%emt 0:00:52]} 7. Be3 {[%emt 0:01:51]} Na5 {[%emt 0:01:28]} 8. Qa4+ {[%emt 0:01:58]} Bd7 {[%emt 0:00:58]} 9. Bb5 {[%emt 0:02:55]} Bxb5 {[%emt 0:02:02]} 10. Qxb5+ {[%emt 0:00:31]} Nd7 {[%emt 0:00:17]} 11. b4 {[%emt 0:01:28]} a6 {[%emt 0:01:20]} 12. Qa4 {[%emt 0:00:26]} Nc6 {[%emt 0:01:16]} 13. bxc5 {[%emt 0:07:40]} dxc5 {[%emt 0:01:33]} 14. Nbd2 {[%emt 0:01:17]} Nf6 {[%emt 0:02:00]} 15. Nxe5 {[%emt 0:01:04]} Rc8 {[%emt 0:03:57]} 16. Rb1 {[%emt 0:00:50]} Qe7 {[%emt 0:02:15]} 17. d4 {[%emt 0:02:07]} Qc7 {[%emt 0:03:46]} 18. g3 {[%emt 0:03:42]} Bd6 {[%emt 0:00:47]} 19. dxc5 {[%emt 0:07:13]} Bxe5 {[%emt 0:01:15]} 20. Bf4 {[%emt 0:01:07]} O-O {[%emt 0:02:07]} 21. O-O {[%emt 0:01:48]} Bxf4 {[%emt 0:00:22]} 22. Nf3 {[%emt 0:02:40]} Bxg3 {[%emt 0:02:56]} 23. e5 {[%emt 0:01:35]} Bxe5 {[%emt 0:00:35]} 24. Nxe5 {[%emt 0:00:34]} Qxe5 {[%emt 0:00:46]} 25. f4 {[%emt 0:00:10]} Qxc5+ {[%emt 0:00:53]} 26. Kg2 {[%emt 0:00:26]} Qxc3 {[%emt 0:00:37]} 27. Rxb7 {[%emt 0:00:17]} Rfe8 {[%emt 0:02:34]} 28. Rf3 {[%emt 0:02:13]} Qd2+ {[%emt 0:00:58]} 29. Kg3 {[%emt 0:00:18]} Nh5+ {[%emt 0:01:32]} 30. Kg4 {[%emt 0:00:55]} Qg2+ {[%emt 0:01:47]} 31. Kxh5 {[%emt 0:01:00]} Qxf3+ {[%emt 0:00:24]} 32. Kh4 {[%emt 0:00:13]} Qf2+ {[%emt 0:01:23]} 33. Kg4 {[%emt 0:00:20]} Qe2+ {[%emt 0:01:28]} 34. Kf5 {[%emt 0:00:38]} Qh5# {[%emt 0:01:26]} 0-1

[Event "WALTON 1st Div Women League 2023"]
[Site "Dhaka"]
[Date "2023.03.24"]
[Round "3.4"]
[White "Sayeda Nusaibah, Mahmud"]
[Black "Mahjabeen, Islam"]
[Result "0-1"]
[ECO "C50"]
[WhiteElo "1191"]
[BlackElo "1180"]
[Annotator "NA RC COMBH"]
[PlyCount "106"]
[EventDate "2023.03.22"]
[EventType "team-tourn"]
[EventCountry "BAN"]
[SourceTitle "playchess.com"]
[Source "ChessBase"]
[SourceQuality "1"]
[TimeControl "5400+30"]

1. e4 {[%emt 0:00:02]} e5 {[%emt 0:00:07]} 2. Nf3 {[%emt 0:00:09]} Nc6 {[%emt 0:00:09]} 3. Nc3 {[%emt 0:00:31]} a6 {[%emt 0:00:33]} 4. Bc4 {[%emt 0:00:54]} Bc5 {[%emt 0:00:24]} 5. d3 {[%emt 0:01:28]} Nf6 {[%emt 0:00:31]} 6. Bg5 {[%emt 0:00:39]} h6 {[%emt 0:00:51]} 7. Bh4 {[%emt 0:00:20]} d6 {[%emt 0:00:27]} 8. h3 {[%emt 0:00:15]} Be6 {[%emt 0:00:51]} 9. Bxe6 {[%emt 0:04:15]} fxe6 {[%emt 0:00:14]} 10. O-O {[%emt 0:00:21]} g5 {[%emt 0:00:20]} 11. Bg3 {[%emt 0:00:21]} Qe7 {[%emt 0:00:50]} 12. Ne2 {[%emt 0:01:03]} Rg8 {[%emt 0:00:29]} 13. Re1 {[%emt 0:01:30]} Nh5 {[%emt 0:02:21]} 14. Bh2 {[%emt 0:00:41]} Nf4 {[%emt 0:01:45]} 15. d4 {[%emt 0:00:58]} Nxe2+ {[%emt 0:01:00]} 16. Rxe2 {[%emt 0:00:12]} Nxd4 {[%emt 0:01:10]} 17. Rd2 {[%emt 0:01:54]} Nxf3+ {[%emt 0:01:52]} 18. Qxf3 {[%emt 0:00:24]} Qf7 {[%emt 0:00:51]} 19. Qxf7+ {[%emt 0:01:22]} Kxf7 {[%emt 0:00:13]} 20. Rd3 {[%emt 0:00:27]} Ke7 {[%emt 0:00:29]} 21. Kf1 {[%emt 0:02:41]} Raf8 {[%emt 0:00:00]} 22. f3 {[%emt 0:00:16]} c6 {[%emt 0:01:04]} 23. Bg1 {[%emt 0:00:46]} Bxg1 {[%emt 0:00:36]} 24. Kxg1 {[%emt 0:00:07]} d5 {[%emt 0:00:34]} 25. exd5 {[%emt 0:02:20]} exd5 {[%emt 0:00:10]} 26. Re3 {[%emt 0:00:11]} Kd6 {[%emt 0:00:27]} 27. Rd1 {[%emt 0:00:31]} d4 {[%emt 0:03:17]} 28. c3 {[%emt 0:00:31]} c5 {[%emt 0:00:30]} 29. cxd4 {[%emt 0:04:46]} exd4 {[%emt 0:00:31]} 30. Re4 {[%emt 0:00:39]} Rf4 {[%emt 0:00:54]} 31. Kf2 {[%emt 0:01:34]} Rxe4 {[%emt 0:00:24]} 32. fxe4 {[%emt 0:00:40]} Rf8+ {[%emt 0:01:08]} 33. Ke2 {[%emt 0:00:39]} Ke5 {[%emt 0:01:18]} 34. Kd3 {[%emt 0:00:22]} b5 {[%emt 0:01:34]} 35. b3 {[%emt 0:00:36]} h5 {[%emt 0:05:37]} 36. Rc1 {[%emt 0:00:54]} Rc8 {[%emt 0:03:08]} 37. g3 {[%emt 0:00:52]} g4 {[%emt 0:03:06]} 38. hxg4 {[%emt 0:00:26]} hxg4 {[%emt 0:00:08]} 39. a3 {[%emt 0:00:31]} c4+ {[%emt 0:01:50]} 40. bxc4 {[%emt 0:00:17]} bxc4+ {[%emt 0:00:13]} 41. Rxc4 {[%emt 0:01:07]} Rxc4 {[%emt 0:00:06]} 42. Kxc4 {[%emt 0:00:06]} Kxe4 {[%emt 0:00:07]} 43. Kb3 {[%emt 0:00:14]} d3 {[%emt 0:00:23]} 44. Kb2 {[%emt 0:00:25]} Ke3 {[%emt 0:00:07]} 45. Kc1 {[%emt 0:00:09]} Ke2 {[%emt 0:00:17]} 46. Kb2 {[%emt 0:01:13]} d2 {[%emt 0:00:06]} 47. Kc3 {[%emt 0:00:11]} d1=Q {[%emt 0:00:13]} 48. a4 {[%emt 0:00:17]} Qd3+ {[%emt 0:00:15]} 49. Kb4 {[%emt 0:00:11]} Qc2 {[%emt 0:00:31]} 50. a5 {[%emt 0:00:12]} Kd3 {[%emt 0:00:54]} 51. Ka3 {[%emt 0:00:10]} Qb1 {[%emt 0:00:32]} 52. Ka4 {[%emt 0:00:17]} Kc3 {[%emt 0:00:09]} 53. Ka3 {[%emt 0:00:13]} Qb3# {[%emt 0:00:11]} 0-1

[Event "WALTON 1st Div Women League 2023"]
[Site "Dhaka"]
[Date "2023.03.24"]
[Round "3.5"]
[White "Warisa Haider"]
[Black "Wadifa, Ahmed"]
[Result "0-1"]
[ECO "B44"]
[WhiteElo "1302"]
[BlackElo "1811"]
[Annotator "NA RC COMBH"]
[PlyCount "56"]
[EventDate "2023.03.22"]
[EventType "team-tourn"]
[EventCountry "BAN"]
[SourceTitle "playchess.com"]
[Source "ChessBase"]
[SourceQuality "1"]
[TimeControl "5400+30"]

1. e4 {[%emt 0:00:03]} c5 {[%emt 0:01:06]} 2. Nf3 {[%emt 0:00:52]} e6 {[%emt 0:00:06]} 3. d4 {[%emt 0:00:28]} cxd4 {[%emt 0:00:06]} 4. Nxd4 {[%emt 0:00:14]} Nc6 {[%emt 0:00:32]} 5. c3 {[%emt 0:01:55]} Qc7 {[%emt 0:01:55]} 6. Be3 {[%emt 0:03:21]} a6 {[%emt 0:00:30]} 7. Bd3 {[%emt 0:02:35]} Nf6 {[%emt 0:02:02]} 8. O-O {[%emt 0:04:40]} Ne5 {[%emt 0:08:44]} 9. Bc2 {[%emt 0:04:06]} Nc4 {[%emt 0:03:29]} 10. Qe2 {[%emt 0:02:43]} Nxe3 {[%emt 0:02:32]} 11. Qxe3 {[%emt 0:02:03]} b5 {[%emt 0:01:30]} 12. Nd2 {[%emt 0:03:30]} d6 {[%emt 0:08:32]} 13. Rac1 {[%emt 0:04:24]} Be7 {[%emt 0:03:51]} 14. c4 {[%emt 0:04:01]} b4 {[%emt 0:02:09]} 15. Qb3 {[%emt 0:01:51]} Qc5 {[%emt 0:08:49]} 16. N2f3 {[%emt 0:04:37]} O-O {[%emt 0:00:57]} 17. Qe3 {[%emt 0:01:49]} Re8 {[%emt 0:05:17]} 18. b3 {[%emt 0:04:01]} Bb7 {[%emt 0:11:45]} 19. e5 {[%emt 0:03:31]} dxe5 {[%emt 0:00:22]} 20. Nxe5 {[%emt 0:00:32]} Rad8 {[%emt 0:01:01]} 21. Rfd1 {[%emt 0:02:14]} Qc7 {[%emt 0:03:02]} 22. h3 {[%emt 0:02:40]} Bc5 {[%emt 0:00:45]} 23. Qf4 {[%emt 0:07:42]} Qb6 {[%emt 0:02:53]} 24. Ne2 {[%emt 0:02:18]} Bd6 {[%emt 0:00:49]} 25. Nd4 {[%emt 0:11:31]} Qc7 {[%emt 0:04:20]} 26. Re1 {[%emt 0:01:41]} Bxe5 {[%emt 0:05:33]} 27. Qxe5 {[%emt 0:01:27]} Qxe5 {[%emt 0:00:10]} 28. Rxe5 {[%emt 0:00:24]} Rxd4 {[%emt 0:00:05]} 0-1

[Event "WALTON 1st Div Women League 2023"]
[Site "Dhaka"]
[Date "2023.03.24"]
[Round "3.7"]
[White "Fariha, Sumona"]
[Black "Kazi Zarin, Tasnim"]
[Result "0-1"]
[ECO "C55"]
[WhiteElo "1378"]
[BlackElo "1837"]
[Annotator "NA RC COMBH"]
[PlyCount "73"]
[EventDate "2023.03.22"]
[EventType "team-tourn"]
[EventCountry "BAN"]
[SourceTitle "playchess.com"]
[Source "ChessBase"]
[SourceQuality "1"]
[TimeControl "5400+30"]

1. e4 {[%emt 0:11:56]} e5 {[%emt 0:00:13]} 2. Nf3 {[%emt 0:00:40]} Nc6 {[%emt 0:00:06]} 3. Bc4 {[%emt 0:00:07]} Bc5 {[%emt 0:00:06]} 4. Nc3 {[%emt 0:00:18]} Nf6 {[%emt 0:00:09]} 5. h3 {[%emt 0:00:34]} a6 {[%emt 0:00:06]} 6. a3 {[%emt 0:00:15]} d6 {[%emt 0:00:31]} 7. d3 {[%emt 0:00:27]} Ba7 {[%emt 0:02:37]} 8. O-O {[%emt 0:00:39]} O-O {[%emt 0:00:49]} 9. Be3 {[%emt 0:00:30]} Bxe3 {[%emt 0:05:25]} 10. fxe3 {[%emt 0:00:13]} Re8 {[%emt 0:00:02]} 11. Ng5 {[%emt 0:02:45]} Re7 {[%emt 0:04:06]} 12. Nd5 {[%emt 0:02:02]} Nxd5 {[%emt 0:01:22]} 13. Bxd5 {[%emt 0:07:16]} Be6 {[%emt 0:00:41]} 14. Qh5 {[%emt 0:07:08]} h6 {[%emt 0:01:21]} 15. Bxe6 {[%emt 0:06:00]} fxe6 {[%emt 0:00:51]} 16. Nxe6 {[%emt 0:00:42]} Qd7 {[%emt 0:00:43]} 17. Nxg7 {[%emt 0:02:50]} Rxg7 {[%emt 0:00:04]} 18. Qxh6 {[%emt 0:00:16]} Ne7 {[%emt 0:08:47]} 19. Rf3 {[%emt 0:01:23]} Rg6 {[%emt 0:07:07]} 20. Qh5 {[%emt 0:01:17]} Kg7 {[%emt 0:03:42]} 21. Raf1 {[%emt 0:01:31]} Qe6 {[%emt 0:00:22]} 22. b4 {[%emt 0:03:56]} Ng8 {[%emt 0:00:58]} 23. d4 {[%emt 0:01:20]} Nf6 {[%emt 0:08:25]} 24. d5 {[%emt 0:02:04]} Nxh5 {[%emt 0:03:16]} 25. dxe6 {[%emt 0:00:51]} Nf6 {[%emt 0:01:03]} 26. g4 {[%emt 0:01:06]} Re8 {[%emt 0:00:12]} 27. Kh2 {[%emt 0:00:47]} Rxe6 {[%emt 0:00:06]} 28. Rg1 {[%emt 0:01:03]} Nxe4 {[%emt 0:00:24]} 29. h4 {[%emt 0:00:35]} Ref6 {[%emt 0:01:34]} 30. Rxf6 {[%emt 0:00:52]} Rxf6 {[%emt 0:00:08]} 31. c4 {[%emt 0:02:09]} Rf2+ {[%emt 0:00:43]} 32. Rg2 {[%emt 0:01:16]} Rxg2+ {[%emt 0:01:02]} 33. Kxg2 {[%emt 0:00:07]} Nd2 {[%emt 0:00:42]} 34. c5 {[%emt 0:00:26]} dxc5 {[%emt 0:03:49]} 35. bxc5 {[%emt 0:00:32]} Nb3 {[%emt 0:00:25]} 36. h5 {[%emt 0:01:03]} Kh6 {[%emt 0:00:23]} 37. Kg1 {[%emt 0:42:04]} 0-1

[Event "WALTON 1st Div Women League 2023"]
[Site "Dhaka"]
[Date "2023.03.24"]
[Round "3.9"]
[White "Nusrat, Jahan Liza"]
[Black "Nusrat Jahan, Alo"]
[Result "0-1"]
[ECO "B23"]
[WhiteElo "1573"]
[BlackElo "1787"]
[Annotator "NA RC COMBH"]
[PlyCount "68"]
[EventDate "2023.03.22"]
[EventType "team-tourn"]
[EventCountry "BAN"]
[SourceTitle "playchess.com"]
[Source "ChessBase"]
[SourceQuality "1"]
[TimeControl "5400+30"]

1. e4 {[%emt 0:00:03]} c5 {[%emt 0:01:02]} 2. Nc3 {[%emt 0:00:11]} e6 {[%emt 0:00:06]} 3. Bb5 {[%emt 0:01:00]} a6 {[%emt 0:00:08]} 4. Be2 {[%emt 0:01:54]} Nc6 {[%emt 0:01:00]} 5. f4 {[%emt 0:01:34]} b5 {[%emt 0:05:47]} 6. a3 {[%emt 0:01:06]} Nd4 {[%emt 0:02:02]} 7. Nf3 {[%emt 0:01:21]} Bb7 {[%emt 0:03:54]} 8. d3 {[%emt 0:01:15]} Nxe2 {[%emt 0:05:18]} 9. Nxe2 {[%emt 0:00:40]} d6 {[%emt 0:01:05]} 10. b4 {[%emt 0:02:00]} c4 {[%emt 0:06:44]} 11. Bb2 {[%emt 0:01:13]} Nf6 {[%emt 0:03:51]} 12. Ng3 {[%emt 0:03:44]} Rc8 {[%emt 0:02:09]} 13. Rc1 {[%emt 0:05:26]} d5 {[%emt 0:06:27]} 14. e5 {[%emt 0:01:53]} c3 {[%emt 0:03:46]} 15. Ba1 {[%emt 0:01:52]} Ng4 {[%emt 0:00:36]} 16. h3 {[%emt 0:03:36]} Ne3 {[%emt 0:00:41]} 17. Qe2 {[%emt 0:00:31]} d4 {[%emt 0:00:27]} 18. Kf2 {[%emt 0:08:32]} Nf5 {[%emt 0:19:27]} 19. Nxf5 {[%emt 0:00:55]} exf5 {[%emt 0:00:03]} 20. Rhe1 {[%emt 0:01:06]} Be7 {[%emt 0:02:01]} 21. Kg1 {[%emt 0:06:06]} O-O {[%emt 0:00:49]} 22. Qf2 {[%emt 0:01:10]} Bxf3 {[%emt 0:00:22]} 23. Qxf3 {[%emt 0:00:05]} a5 {[%emt 0:00:23]} 24. Rb1 {[%emt 0:02:42]} axb4 {[%emt 0:02:49]} 25. axb4 {[%emt 0:00:51]} Qd7 {[%emt 0:04:36]} 26. Qe2 {[%emt 0:04:55]} Ra8 {[%emt 0:00:49]} 27. e6 {[%emt 0:00:50]} fxe6 {[%emt 0:01:51]} 28. Qxe6+ {[%emt 0:00:09]} Qxe6 {[%emt 0:00:06]} 29. Rxe6 {[%emt 0:00:06]} Bf6 {[%emt 0:00:02]} 30. Rb6 {[%emt 0:04:47]} Rfb8 {[%emt 0:00:19]} 31. Rxb8+ {[%emt 0:03:57]} Rxb8 {[%emt 0:00:16]} 32. Kf2 {[%emt 0:09:29]} Ra8 {[%emt 0:01:22]} 33. g4 {[%emt 0:11:31]} g6 {[%emt 0:00:48]} 34. Re1 {[%emt 0:09:38]} Bh4+ {[%emt 0:00:12]} 0-1

[Event "WALTON 1st Div Women League 2023"]
[Site "Dhaka"]
[Date "2023.03.24"]
[Round "3.10"]
[White "Srija, Seshadri"]
[Black "Afrin Jahan, Munia"]
[Result "1-0"]
[ECO "C03"]
[WhiteElo "2194"]
[BlackElo "1634"]
[Annotator "TA"]
[PlyCount "49"]
[EventDate "2023.03.22"]
[EventType "team-tourn"]
[EventCountry "BAN"]
[SourceTitle "playchess.com"]
[Source "ChessBase"]
[SourceQuality "1"]
[TimeControl "5400+30"]

{[%evp 9,48,29,56,36,113,116,139,127,168,156,229,220,236,213,363,309,327,301,303,278,304,295,310,322,702,675,668,664,659,674,836,778,951,947,959,964,919,908,29987,29988,29999]} 1. e4 {[%emt 0:00:06]} e6 {[%emt 0:00:27]} 2. d4 {[%emt 0:00:10]} d5 {[%emt 0:00:18]} 3. Nd2 {[%emt 0:00:09]} Nd7 {[%emt 0:04:02]} 4. e5 {[%emt 0:01:15]} c5 {[%emt 0:00:27]} 5. c3 {[%emt 0:00:10] [#]} c4 $146 {[%emt 0:03:12]} ({Predecessor:} 5... Ne7 6. Bd3 Nc6 7. Ndf3 cxd4 8. cxd4 Bb4+ 9. Bd2 Bxd2+ 10. Qxd2 Qa5 11. Ne2 Qxd2+ 12. Kxd2 Ke7 13. Rac1 Nb6 14. h4 Bd7 15. b3 h6 16. g4 {1-0 Vazquez,G (2527)-Postny,E (2605) PNWCC Opening Bl French blitz 2020 (7)}) 6. b3 {[%emt 0:05:18] C03: French Tarrasch: Unusual Black 3rd moves.} cxb3 {[%emt 0:05:15]} (6... b5 $14) 7. axb3 $16 {[%emt 0:00:11]} Ne7 {[%emt 0:04:44]} 8. Bd3 {[%emt 0:00:25] White is more active. White is clearly better.} Ng6 {[%emt 0:04:11]} 9. Ne2 {[%emt 0:00:35]} f5 {[%emt 0:08:11]} (9... a5 $16 10. Nf3 b6) 10. Nf3 $18 {[%emt 0:03:17]} Be7 {[%emt 0:00:58]} 11. h4 {[%emt 0:01:23][%cal Bh2h4,Bh4h5][%mdl 32]} h6 {[%emt 0:12:18]} (11... Nb6 $142 12. h5 Nf8) 12. h5 {[%emt 0:01:28]} Ngf8 {[%emt 0:01:43]} 13. Nf4 {[%emt 0:01:56]} Nb6 {[%emt 0:03:31]} 14. Bd2 {[%emt 0:02:27][%cal Bc1d2,Bd2f4,Bf4h6][%mdl 32]} Bg5 {[%emt 0:03:50] [#]} 15. g4 $1 {[%emt 0:10:34][%mdl 512]} Bxf4 {[%emt 0:06:05]} (15... a5 16. gxf5) 16. Bxf4 {[%emt 0:00:08]} g5 $2 {[%emt 0:03:16] Black is weak on the dark squares} (16... Qc7 17. Rc1 (17. Bb5+ Bd7 $16) 17... Qf7) 17. hxg6 {[%emt 0:01:37] g7 would be deadly.} Nxg6 {[%emt 0:02:58]} 18. Rxh6 {[%emt 0:00:26]} Rxh6 {[%emt 0:00:34]} 19. Bxh6 {[%emt 0:00:18]} Qc7 {[%emt 0:04:35]} 20. Kd2 {[%emt 0:01:48]} Bd7 {[%emt 0:01:46]} 21. gxf5 {[%emt 0:00:46]} exf5 {[%emt 0:02:05]} 22. Qg1 {[%emt 0:00:15]} Ne7 {[%emt 0:06:09]} 23. Qg7 {[%emt 0:00:18][%csl Gh6][%cal Rg7f8] [#]} Be6 {[%emt 0:00:11]} 24. Bb5+ {[%emt 0:00:18]} Nd7 {[%emt 0:03:25]} 25. Qf8# {[%emt 0:00:06] Black did not feel at home in the position after the opening.   Weighted Error Value: White=0.10 (very precise) /Black=0.83} 1-0